bitfinex-derivatives/quotes_BTCF0:USTF0_20251229
["timestamp","ask_amount","ask_price","bid_price","bid_amount"]
[1767001015211,0.15356,88693.0,88663.0,0.03]
[1767001015412,0.1648492,88693.0,88663.0,0.03]
[1767001015612,0.1648492,88693.0,88669.0,0.00016909]
[1767001015919,0.15356,88693.0,88665.0,0.0112928]
[1767001016108,0.15356,88693.0,88665.0,0.0412928]
[1767001016312,0.15352,88692.0,88665.0,0.03]
[1767001016711,0.18156386,88675.0,88610.0,0.18156386]
[1767001016914,0.011294,88656.0,88609.0,0.09588]
[1767001017113,0.18156386,88650.0,88616.0,0.0112989]
[1767001017313,0.18156386,88640.0,88592.0,0.011302]
[1767001017521,0.18156386,88630.0,88592.0,0.03]
[1767001017813,0.0112931,88663.0,88592.0,0.03]
[1767001017814,0.18156386,88610.0,88592.0,0.03]
[1767001018016,0.15369479,88609.0,88581.0,0.0113035]
[1767001018217,0.15369479,88609.0,88560.0,0.00014211]
[1767001018218,0.18006386,88600.0,88560.0,0.00014211]
[1767001018412,0.15372945,88599.0,88560.0,0.03014211]
[1767001018611,1.5,88598.0,88560.0,0.03014211]
[1767001018811,0.0001693,88588.0,88570.0,0.0001693]
[1767001019020,0.18156386,88580.0,88542.0,0.0113083]
[1767001019322,0.18156386,88590.0,88548.0,0.0113076]
[1767001019523,0.18156386,88590.0,88548.0,0.0413076]
[1767001019524,0.39348,88589.0,88548.0,0.0413076]
[1767001019720,0.18156386,88580.0,88548.0,0.03]
[1767001019920,0.0001693,88573.0,88555.0,0.0001131]
[1767001020115,0.15354,88572.0,88526.0,0.09592]
[1767001020310,0.0001693,88573.0,88558.0,0.0113064]
[1767001020514,0.15364,88572.0,88544.0,0.09592]
[1767001020716,0.18156386,88560.0,88523.0,0.09592]
[1767001020917,0.00012886,88559.0,88523.0,0.01]
[1767001021120,0.0001694,88550.0,88523.0,0.01]
[1767001021421,0.05783379,88549.0,88523.0,0.01]
[1767001021623,0.05783379,88549.0,88477.0,0.0565838]
[1767001021624,0.18156386,88540.0,88477.0,0.0565838]
[1767001021922,0.05776,88546.0,88520.0,0.18156386]
[1767001022112,1e-07,88550.0,88523.0,0.0113108]
[1767001022314,1e-07,88550.0,88523.0,0.03]
[1767001022618,0.09591,88557.0,88536.0,0.0113092]
[1767001022824,0.18156386,88570.0,88536.0,0.03]
[1767001022825,0.15376,88556.0,88536.0,0.03]
[1767001023014,0.00010113,88555.0,88536.0,0.03]
[1767001023214,0.0113027,88588.0,88536.0,0.03]
[1767001023415,0.18156386,88570.0,88540.0,0.0113087]
[1767001023725,0.18156386,88550.0,88494.0,0.0113146]
[1767001023927,0.39372,88549.0,88518.0,0.0113115]
[1767001024126,0.18156386,88530.0,88482.0,0.05]
[1767001024425,0.15376,88529.0,88482.0,0.01]
[1767001024623,0.0001694,88514.0,88492.0,0.0113148]
[1767001024818,0.0578,88516.0,88499.0,0.0113139]
[1767001025020,0.0113079,88547.0,88499.0,0.0413139]
[1767001025223,0.3938,88546.0,88499.0,0.0412639]
[1767001025421,0.18156386,88550.0,88499.0,0.0412639]
[1767001025626,0.0113051,88569.0,88517.0,0.0113116]
[1767001025923,0.18156386,88550.0,88506.0,0.096]
[1767001026125,0.00014284,88549.0,88506.0,0.126]
[1767001026339,0.096,88565.0,88520.0,0.18156386]
[1767001026536,0.096,88572.0,88530.0,0.18156386]
[1767001026843,0.18156386,88570.0,88528.0,0.096]
[1767001027138,0.0113057,88564.0,88528.0,0.03]
[1767001027342,0.0001694,88555.0,88537.0,0.0114784]
[1767001027534,0.0113015,88597.0,88560.0,0.0113061]
[1767001027733,0.18156386,88570.0,88535.0,0.0113093]
[1767001027934,0.096,88573.0,88538.0,0.011309]
[1767001028139,0.15392,88572.0,88538.0,0.041309]
[1767001028347,0.15392,88572.0,88546.0,0.0113079]
[1767001028546,0.0001694,88568.0,88550.0,0.0001694]
[1767001028741,0.0001694,88568.0,88538.0,0.05792]
[1767001028946,0.0001694,88568.0,88539.0,0.096]
[1767001029134,0.0001694,88568.0,88540.0,0.19287256]
[1767001029338,0.0001694,88568.0,88540.0,0.21156386]
[1767001029743,0.0001294,88568.0,88540.0,0.21156386]
[1767001029945,0.0113036,88580.0,88540.0,0.21152386]
[1767001030140,5.76268,88679.0,88540.0,0.21152386]
[1767001030141,0.09604,88609.0,88570.0,0.18156386]
[1767001030340,0.18156386,88610.0,88570.0,0.03]
[1767001030637,0.0113009,88602.0,88570.0,0.03]
[1767001030835,0.0692209,88601.0,88570.0,0.03]
[1767001031038,0.0001694,88594.0,88577.0,0.0001694]
[1767001032043,0.0001694,88594.0,88522.0,0.011311]
[1767001032248,0.0113026,88588.0,88530.0,0.18156386]
[1767001032438,0.18156386,88580.0,88533.0,0.23847693]
[1767001032746,0.0113039,88578.0,88539.0,0.0113088]
[1767001032941,0.09604,88577.0,88539.0,0.03]
[1767001033143,0.0001694,88567.0,88549.0,0.0001694]
[1767001033449,0.0001694,88567.0,88549.0,0.0301694]
[1767001034244,0.0113017,88595.0,88549.0,0.0301694]
[1767001034450,0.0113041,88577.0,88549.0,0.03]
[1767001034650,0.0113051,88569.0,88549.0,0.03]
[1767001034840,0.0113051,88569.0,88534.0,0.05788]
[1767001035036,0.18156386,88570.0,88534.0,0.08788]
[1767001035247,0.0001694,88561.0,88543.0,0.0001694]
[1767001035452,0.1075155,88561.0,88543.0,0.0001694]
[1767001035642,0.0961094,88561.0,88543.0,0.0001694]
[1767001036148,0.05788,88564.0,88543.0,0.0301694]
[1767001036449,0.0113034,88582.0,88546.0,0.0113079]
[1767001036648,0.1062,88581.0,88546.0,0.03]
[1767001036847,0.0113038,88579.0,88546.0,0.03]
[1767001037350,0.0113002,88607.0,88554.0,0.0001694]
[1767001037351,0.011303,88586.0,88554.0,0.0001694]
[1767001037536,0.0113033,88583.0,88555.0,0.09604]
[1767001037736,0.0113033,88583.0,88555.0,0.12604]
[1767001038248,0.0113043,88576.0,88555.0,0.09604]
[1767001038551,0.0001694,88578.0,88560.0,0.0001694]
[1767001039444,0.0001694,88578.0,88560.0,0.0301694]
[1767001039848,0.1073427,88588.0,88560.0,0.0301694]
[1767001040946,0.1073427,88588.0,88560.0,0.0001694]
[1767001040947,0.0001694,88583.0,88560.0,0.0001694]
[1767001041344,0.0113035,88581.0,88560.0,0.0001694]
[1767001041544,0.0001694,88583.0,88560.0,0.0001694]
[1767001041939,0.0001694,88583.0,88561.0,0.09604]
[1767001042145,0.09604,88592.0,88569.0,0.0113049]
[1767001042351,0.09604,88602.0,88569.0,0.03]
[1767001042546,0.09604,88608.0,88582.0,0.0113033]
[1767001042741,0.0113011,88600.0,88581.0,0.09604]
[1767001043047,0.00011259,88599.0,88582.0,0.0001694]
[1767001043246,0.09604,88610.0,88582.0,0.0301694]
[1767001043553,0.09604,88618.0,88583.0,0.11289166]
[1767001043851,0.18156386,88650.0,88590.0,0.18156386]
[1767001044153,0.18156386,88650.0,88599.0,0.0113012]
[1767001044154,0.41865598,88649.0,88599.0,0.0113012]
[1767001044357,1.52465598,88648.0,88615.0,0.00016929]
[1767001044554,0.02465598,88647.0,88615.0,0.03016929]
[1767001044755,0.0112963,88638.0,88615.0,0.03016929]
[1767001044952,0.011296,88640.0,88615.0,0.03016929]
[1767001045157,0.0112955,88644.0,88615.0,0.03016929]
[1767001045453,0.05784,88643.0,88615.0,0.00016929]
[1767001045751,0.0112982,88623.0,88601.0,0.09604]
[1767001045940,0.0112959,88641.0,88601.0,0.09604]
[1767001045941,0.0112976,88627.0,88602.0,0.09604]
[1767001046149,0.0112974,88629.0,88602.0,0.03]
[1767001046343,0.09604,88630.0,88603.0,0.09604]
[1767001046644,0.01146729,88625.0,88608.0,0.00016929]
[1767001047040,0.00016929,88625.0,88608.0,0.03016929]
[1767001047351,0.00016929,88625.0,88608.0,0.00016929]
[1767001047656,0.011296,88640.0,88608.0,0.03016929]
[1767001048155,0.0112955,88644.0,88610.0,0.0112998]
[1767001048358,0.0112963,88638.0,88610.0,0.03]
[1767001048657,0.09604,88648.0,88610.0,0.03]
[1767001048842,0.0112953,88646.0,88616.0,0.011299]
[1767001049148,0.09604,88648.0,88616.0,0.03]
[1767001049354,0.0112963,88638.0,88617.0,0.09604]
[1767001050049,0.09604,88648.0,88617.0,0.09604]
[1767001050556,0.0112962,88639.0,88617.0,0.09604]
[1767001051054,0.0112973,88630.0,88608.0,0.00016929]
[1767001051353,0.0112973,88630.0,88609.0,0.096]
[1767001051548,0.0112973,88630.0,88609.0,0.126]
[1767001051753,0.0112968,88634.0,88609.0,0.126]
[1767001051941,0.096,88638.0,88609.0,0.126]
[1767001052141,0.096,88638.0,88611.0,0.0112996]
[1767001052348,0.096,88638.0,88611.0,0.03]
[1767001052753,0.096,88638.0,88612.0,0.15376]
[1767001052950,0.096,88638.0,88612.0,0.16376]
[1767001053252,0.096,88638.0,88608.0,0.00016929]
[1767001053253,0.18156386,88622.0,88581.0,0.00013398]
[1767001053551,0.19286506,88600.0,88581.0,0.03013398]
[1767001053759,0.0113012,88600.0,88581.0,0.03013398]
[1767001053946,0.0113029,88586.0,88536.0,0.0113091]
[1767001054153,0.00016929,88570.0,88552.0,0.00016929]
[1767001054451,0.011303,88586.0,88554.0,0.0113068]
[1767001054657,0.0113024,88590.0,88554.0,0.0413068]
[1767001054858,0.0113013,88599.0,88562.0,0.0113059]
[1767001055060,0.00011216,88589.0,88562.0,0.0413059]
[1767001055253,0.00011216,88589.0,88567.0,0.00016929]
[1767001055448,0.00011216,88589.0,88567.0,0.01016929]
[1767001056963,0.00011216,88589.0,88568.0,0.0113051]
[1767001057148,0.00011216,88589.0,88568.0,0.0413051]
[1767001057348,0.00011216,88589.0,88572.0,0.0113045]
[1767001057544,2.16e-06,88589.0,88572.0,0.0413045]
[1767001058255,2.16e-06,88589.0,88573.0,0.096]
[1767001058459,2.16e-06,88589.0,88574.0,0.05776]
[1767001058760,2.16e-06,88589.0,88574.0,0.08776]
[1767001058954,0.05776,88608.0,88574.0,0.08776]
[1767001059165,0.096,88620.0,88579.0,0.18156386]
[1767001059345,0.02473338,88619.0,88591.0,0.00016929]
[1767001059661,0.02473338,88618.0,88592.0,0.15376]
[1767001059851,0.096,88620.0,88592.0,0.18376]
[1767001059852,0.02473338,88617.0,88592.0,0.18376]
[1767001060162,0.02477655,88616.0,88592.0,0.18376]
[1767001060460,0.18156386,88610.0,88571.0,0.15372]
[1767001060653,0.17845511,88609.0,88572.0,0.096]
[1767001060853,0.0113013,88599.0,88572.0,0.126]
[1767001061053,4.317e-05,88598.0,88572.0,0.126]
[1767001061451,0.00016929,88594.0,88576.0,0.00016929]
[1767001061757,0.0113026,88588.0,88576.0,0.00016929]
[1767001061949,0.00016929,88594.0,88554.0,0.0113069]
[1767001062149,0.00016929,88594.0,88555.0,0.15372]
[1767001062150,0.0113025,88589.0,88555.0,0.15372]
[1767001062356,0.0113025,88589.0,88556.0,0.0113067]
[1767001062551,0.0113024,88590.0,88556.0,0.0413067]
[1767001062756,0.01147129,88594.0,88556.0,0.03]
[1767001062956,0.0113021,88592.0,88566.0,0.00016929]
[1767001063158,0.0113026,88589.0,88567.0,0.15376]
[1767001063359,0.0113026,88589.0,88567.0,0.18376]
[1767001063558,0.00016929,88594.0,88567.0,0.18376]
[1767001063858,0.0360412,88593.0,88567.0,0.18376]
[1767001064067,0.011302,88593.0,88567.0,0.18376]
[1767001064358,0.00016929,88594.0,88567.0,0.18376]
[1767001064565,0.02474348,88593.0,88566.0,9e-08]
[1767001064754,0.18156386,88577.0,88526.0,0.05781815]
[1767001064954,0.0113036,88581.0,88526.0,0.08781815]
[1767001064955,0.18156386,88560.0,88526.0,0.08781815]
[1767001065262,0.011308,88546.0,88526.0,0.08781815]
[1767001065454,0.011309,88538.0,88525.0,0.05772]
[1767001065654,0.011309,88538.0,88523.0,9e-08]
[1767001065655,0.05772,88538.0,88523.0,9e-08]
[1767001065855,0.011311,88523.0,88481.0,0.0113162]
[1767001066057,0.0113121,88514.0,88482.0,0.15376]
[1767001066357,0.00012039,88513.0,88482.0,0.18376]
[1767001066763,0.00016949,88506.0,88489.0,0.00016949]
[1767001066964,0.00016949,88506.0,88489.0,0.03016949]
[1767001067864,0.00016949,88506.0,88490.0,0.0113151]
[1767001068167,0.00016949,88506.0,88490.0,0.03]
[1767001069458,0.00016949,88506.0,88458.0,0.09101764]
[1767001069459,0.00016949,88506.0,88480.0,0.09604]
[1767001069766,0.00016949,88506.0,88480.0,0.0413163]
[1767001070263,0.00016949,88506.0,88480.0,0.03]
[1767001070458,0.01148259,88506.0,88484.0,0.00016949]
[1767001070660,0.01148259,88506.0,88484.0,0.03]
[1767001071165,0.01148259,88506.0,88458.0,0.0113191]
[1767001071166,0.00016949,88506.0,88458.0,0.0113191]
[1767001071358,0.18156386,88500.0,88458.0,0.03]
[1767001071660,0.00016949,88488.0,88470.0,0.00011304]
[1767001071864,0.09620054,88487.0,88470.0,0.00011304]
[1767001072070,0.05772,88486.0,88470.0,0.00011304]
[1767001072261,0.05772,88486.0,88462.0,0.0113187]
[1767001072462,0.05772,88486.0,88462.0,0.03]
[1767001072767,0.05772,88486.0,88453.0,0.0113198]
[1767001072956,0.05772,88486.0,88453.0,0.0413198]
[1767001073154,0.05772,88486.0,88453.0,0.03]
[1767001073363,0.0113162,88482.0,88453.0,0.03]
[1767001073559,0.05772,88486.0,88453.0,0.03]
[1767001073560,0.0113167,88478.0,88453.0,0.03]
[1767001073758,0.0961922,88477.0,88453.0,0.03]
[1767001073958,0.09608,88476.0,88453.0,0.03]
[1767001074463,0.0690357,88486.0,88456.0,0.0113194]
[1767001074464,0.09608,88483.0,88456.0,0.0113194]
[1767001074767,0.09608,88483.0,88456.0,0.03]
[1767001074966,0.00016949,88488.0,88461.0,0.0113187]
[1767001075161,0.09608,88482.0,88461.0,0.03]
[1767001075362,0.09608,88482.0,88446.0,0.03784769]
[1767001075560,0.00016949,88488.0,88449.0,0.03008976]
[1767001075561,0.15384,88481.0,88449.0,0.03008976]
[1767001075858,0.00016949,88488.0,88450.0,0.11303841]
[1767001076063,0.00016949,88488.0,88461.0,0.0113187]
[1767001076262,0.00016949,88488.0,88461.0,0.03]
[1767001076457,0.00016949,88488.0,88449.0,0.09616976]
[1767001076458,0.011316,88484.0,88449.0,8.976e-05]
[1767001076664,0.0113165,88480.0,88449.0,0.02808976]
[1767001076856,0.011317,88476.0,88449.0,0.02808976]
[1767001077166,0.09612,88475.0,88449.0,0.03941006]
[1767001077362,0.09612,88479.0,88449.0,0.02808976]
[1767001077562,0.00011244,88478.0,88449.0,0.02808976]
[1767001079565,0.01142924,88478.0,88449.0,0.02808976]
[1767001079764,0.0113172,88475.0,88449.0,0.02808976]
[1767001080259,0.05784,88477.0,88449.0,0.02808976]
[1767001080458,0.107437,88476.0,88450.0,0.09612]
[1767001080663,0.107437,88476.0,88446.0,0.03784769]
[1767001080664,0.09612,88476.0,88446.0,0.03784769]
[1767001080966,0.09612,88476.0,88413.0,7.995e-05]
[1767001080967,0.0113177,88470.0,88413.0,7.995e-05]
[1767001081166,0.39428,88469.0,88413.0,0.03007995]
[1767001081462,0.0113207,88447.0,88414.0,0.0113248]
[1767001081665,0.09612,88446.0,88415.0,0.09612]
[1767001081863,0.0113209,88445.0,88415.0,0.12612]
[1767001082064,0.09612,88446.0,88416.0,0.09612]
[1767001082268,0.0113213,88443.0,88416.0,0.03]
[1767001082484,0.09612,88446.0,88413.0,7.995e-05]
[1767001082768,0.0114899,88450.0,88413.0,7.995e-05]
[1767001082769,0.0001696,88450.0,88417.0,0.0113245]
[1767001082957,1.59612,88449.0,88417.0,0.03]
[1767001083159,0.0113226,88432.0,88417.0,0.03]
[1767001083473,0.0113218,88438.0,88417.0,0.01]
[1767001083666,0.0113208,88446.0,88417.0,0.10612]
[1767001083861,0.0113212,88443.0,88417.0,0.10612]
[1767001084062,1.4999,88449.0,88417.0,0.1174445]
[1767001084263,0.0113187,88463.0,88427.0,0.0113231]
[1767001084565,0.011319,88460.0,88428.0,0.09612]
[1767001084764,0.05788,88466.0,88429.0,0.15404]
[1767001084765,0.0112697,88455.0,88429.0,0.15404]
[1767001084963,0.05788,88466.0,88429.0,0.18404]
[1767001085173,0.0113181,88467.0,88436.0,0.011322]
[1767001085374,0.0001696,88460.0,88443.0,0.0001696]
[1767001085575,0.09616,88467.0,88443.0,0.0301696]
[1767001085969,0.0113201,88452.0,88427.0,0.09616]
[1767001086164,0.0113182,88466.0,88427.0,0.09616]
[1767001086165,0.0113218,88438.0,88427.0,0.03]
[1767001086365,0.15404,88444.0,88413.0,7.995e-05]
[1767001086575,0.09616,88443.0,88413.0,0.03007995]
[1767001087071,0.0113231,88428.0,88419.0,0.0001696]
[1767001087271,0.0001696,88437.0,88419.0,0.0301696]
[1767001087466,0.0963296,88437.0,88419.0,0.0301196]
[1767001087670,0.0113207,88447.0,88420.0,0.09616]
[1767001087863,0.09616,88454.0,88420.0,0.12616]
[1767001088069,0.09616,88456.0,88420.0,0.12616]
[1767001088275,0.0113173,88473.0,88429.0,0.0113228]
[1767001088471,0.0113193,88458.0,88429.0,0.03]
[1767001088673,0.0113201,88451.0,88429.0,0.03]
[1767001088869,0.0113211,88444.0,88429.0,0.03]
[1767001089068,0.0113221,88436.0,88429.0,0.03]
[1767001089276,0.05792,88438.0,88402.0,0.09616]
[1767001089468,0.0113227,88431.0,88413.0,0.03007995]
[1767001089868,0.0113231,88428.0,88413.0,0.03019991]
[1767001090067,0.0113235,88425.0,88413.0,0.03019991]
[1767001090263,0.0001696,88431.0,88413.0,0.03019991]
[1767001090468,0.011324,88421.0,88413.0,0.03019991]
[1767001090768,0.0113239,88422.0,88413.0,0.03]
[1767001090968,0.0113242,88419.0,88402.0,0.09616]
[1767001091273,0.1074833,88426.0,88402.0,0.12616]
[1767001091464,0.0113233,88426.0,88402.0,0.12616]
[1767001091664,0.0001696,88431.0,88406.0,0.0113259]
[1767001091870,0.0113208,88446.0,88414.0,0.0113247]
[1767001092170,0.0113182,88467.0,88436.0,0.011322]
[1767001092376,0.09616,88471.0,88437.0,0.15408]
[1767001092577,0.09616,88470.0,88437.0,0.18408]
[1767001092871,0.0001696,88462.0,88437.0,0.18408]
[1767001093076,0.011321,88444.0,88437.0,0.03]
[1767001093275,0.0113196,88455.0,88418.0,0.05792]
[1767001093483,0.0113197,88454.0,88418.0,0.01]
[1767001093772,0.0113224,88434.0,88418.0,0.01]
[1767001094176,0.0113189,88461.0,88418.0,0.01]
[1767001094483,0.0113211,88443.0,88418.0,0.01]
[1767001094669,0.09616,88447.0,88418.0,0.01]
[1767001094868,0.0113196,88456.0,88422.0,0.0113238]
[1767001095070,0.0113199,88453.0,88422.0,0.0413238]
[1767001095272,0.0001696,88446.0,88429.0,0.0001696]
[1767001095467,0.0113196,88455.0,88430.0,0.15408]
[1767001095673,0.0113196,88455.0,88430.0,0.18408]
[1767001096585,0.0113182,88466.0,88435.0,0.0113222]
[1767001096776,0.09616,88471.0,88435.0,0.03]
[1767001096978,0.0113178,88469.0,88437.0,0.0113218]
[1767001097274,0.15408,88475.0,88437.0,0.0113218]
[1767001097275,0.15408,88475.0,88446.0,0.0113207]
[1767001097584,0.0001696,88469.0,88452.0,0.0001696]
[1767001097881,0.09621186,88517.0,88453.0,0.12033478]
[1767001098079,0.0113144,88496.0,88460.0,0.0113189]
[1767001098276,0.0113138,88501.0,88460.0,0.03]
[1767001098472,0.02493506,88500.0,88468.0,0.0113179]
[1767001098675,0.0001696,88493.0,88475.0,0.0001696]
[1767001098877,0.0113137,88501.0,88476.0,0.09616]
[1767001099079,0.0113137,88501.0,88476.0,0.12616]
[1767001099280,0.09616,88511.0,88476.0,0.12616]
[1767001099488,0.0113135,88503.0,88476.0,0.03]
[1767001099680,0.0113152,88490.0,88476.0,0.03]
[1767001099874,0.0113143,88497.0,88476.0,0.03]
[1767001100081,0.0001695,88498.0,88476.0,0.03]
[1767001101078,0.09616,88508.0,88476.0,0.03]
[1767001101287,0.01131636,88507.0,88476.0,0.0413168]
[1767001101487,0.09616,88508.0,88476.0,0.0413168]
[1767001101886,0.03784769,88517.0,88476.0,0.03]
[1767001102192,0.00011283,88505.0,88476.0,0.03]
[1767001102386,0.15408,88504.0,88476.0,0.03]
[1767001102789,0.0113164,88481.0,88466.0,0.09616]
[1767001103084,0.0113167,88478.0,88466.0,0.01]
[1767001103489,0.0113162,88482.0,88466.0,0.01]
[1767001104086,0.0001695,88483.0,88466.0,0.01]
[1767001104594,0.01131636,88482.0,88466.0,0.01]
[1767001104794,0.0113157,88486.0,88466.0,0.01]
[1767001105286,0.0113149,88492.0,88466.0,0.01]
[1767001105492,0.09616,88496.0,88466.0,0.01]
[1767001105692,0.00011293,88488.0,88466.0,0.01]
[1767001106589,0.09616,88496.0,88467.0,0.011318]
[1767001106796,0.05836417,88522.0,88467.0,0.011318]
[1767001106797,0.0113133,88505.0,88473.0,0.0113172]
[1767001106991,0.0113136,88502.0,88474.0,0.05788]
[1767001107192,0.0113132,88506.0,88475.0,0.09616]
[1767001107495,0.06967477,88526.0,88475.0,0.09616]
[1767001107496,0.0113121,88514.0,88482.0,0.0113161]
[1767001107700,0.03784769,88517.0,88483.0,0.165356]
[1767001107994,0.0113108,88524.0,88489.0,0.0113152]
[1767001108200,0.0113116,88518.0,88489.0,0.03]
[1767001108394,0.0113116,88518.0,88495.0,0.0001695]
[1767001108594,0.09616,88535.0,88496.0,0.09616]
[1767001108800,0.09616,88535.0,88496.0,0.12616]
[1767001108996,0.011311,88523.0,88496.0,0.12616]
[1767001109500,0.0113105,88527.0,88496.0,0.12616]
[1767001110094,0.01131,88531.0,88498.0,0.0113141]
[1767001110300,0.05836417,88557.0,88498.0,0.03]
[1767001110494,0.08961531,88568.0,88498.0,0.03]
[1767001110495,0.0113098,88532.0,88519.0,0.0001695]
[1767001111001,0.1074693,88536.0,88519.0,0.0001695]
[1767001111200,0.0113093,88536.0,88519.0,0.0001695]
[1767001111397,0.09616,88544.0,88490.0,0.06247241]
[1767001111699,0.0113117,88518.0,88491.0,0.154]
[1767001111896,0.011312,88515.0,88491.0,0.184]
[1767001112298,0.0113129,88508.0,88491.0,0.184]
[1767001112499,0.0001695,88508.0,88491.0,0.1262895]
[1767001112706,0.0113128,88508.0,88491.0,0.1262895]
[1767001112902,0.09612,88518.0,88491.0,0.1262895]
[1767001113101,0.05784,88524.0,88491.0,0.1262895]
[1767001113306,0.09612,88523.0,88491.0,0.1262895]
[1767001113607,0.0113123,88513.0,88491.0,0.1262895]
[1767001114105,0.0113113,88520.0,88491.0,0.0301695]
[1767001114305,0.0113146,88494.0,88483.0,0.15392]
[1767001114605,0.0113146,88494.0,88484.0,0.15392]
[1767001114802,0.09612,88511.0,88484.0,0.18392]
[1767001115007,0.09612,88511.0,88481.0,0.0578]
[1767001115205,0.0113149,88492.0,88481.0,0.0878]
[1767001115505,0.0001695,88495.0,88481.0,0.0878]
[1767001115700,0.0113145,88495.0,88481.0,0.0878]
[1767001116211,0.0113151,88491.0,88481.0,0.0878]
[1767001116508,0.0113146,88494.0,88481.0,0.0878]
[1767001117100,0.0113128,88508.0,88481.0,0.0878]
[1767001117301,0.0113149,88492.0,88481.0,0.0878]
[1767001117610,0.0113128,88508.0,88481.0,0.0878]
[1767001117800,0.0113147,88494.0,88481.0,0.0878]
[1767001118602,0.09612,88511.0,88481.0,0.0878]
[1767001118914,0.0113144,88496.0,88481.0,0.0878]
[1767001119308,0.09612,88511.0,88481.0,0.0878]
[1767001119705,0.011314,88499.0,88481.0,0.0878]
[1767001120007,0.0113127,88510.0,88481.0,0.0878]
[1767001120215,0.0113127,88510.0,88482.0,0.15388]
[1767001120411,0.011314,88499.0,88482.0,0.18388]
[1767001120614,0.0113144,88496.0,88482.0,0.18388]
[1767001120814,0.09612,88511.0,88482.0,0.18388]
[1767001120999,0.09602,88511.0,88482.0,0.18388]
[1767001121205,0.0113137,88502.0,88482.0,0.18388]
[1767001121509,0.05836417,88528.0,88482.0,0.18388]
[1767001121510,0.0113126,88510.0,88482.0,0.18388]
[1767001121709,0.05776,88526.0,88487.0,0.0001695]
[1767001121909,0.09612,88519.0,88487.0,0.0301695]
[1767001122117,0.0113127,88510.0,88487.0,0.0301695]
[1767001122608,0.09612,88519.0,88487.0,0.0301695]
[1767001122815,0.011312,88515.0,88488.0,0.15388]
[1767001123107,0.0113116,88518.0,88488.0,0.18388]
[1767001123308,0.05836417,88537.0,88489.0,0.15388]
[1767001123515,0.0113103,88528.0,88498.0,0.011314]
[1767001123709,0.0113103,88528.0,88504.0,0.0001695]
[1767001123910,0.0113103,88528.0,88504.0,0.0301695]
[1767001124213,0.09612,88536.0,88504.0,0.0301695]
[1767001124214,0.0113109,88524.0,88504.0,0.0301695]
[1767001124414,0.09612,88536.0,88505.0,0.15388]
[1767001124712,0.0113084,88543.0,88506.0,0.15388]
[1767001124713,0.02452259,88535.0,88506.0,0.15388]
[1767001124906,0.0113097,88533.0,88506.0,0.18388]
[1767001125105,0.0113099,88531.0,88506.0,0.18388]
[1767001125314,0.02452259,88530.0,88506.0,0.18388]
[1767001125514,0.0113099,88531.0,88506.0,0.18388]
[1767001125712,0.02453773,88530.0,88506.0,0.18388]
[1767001125906,0.11612417,88544.0,88506.0,0.18388]
[1767001125907,0.0113084,88543.0,88506.0,0.18388]
[1767001126108,0.09612,88544.0,88507.0,0.11297073]
[1767001126413,0.02455341,88543.0,88518.0,0.0113114]
[1767001126614,0.09612,88549.0,88522.0,0.0001695]
[1767001126815,0.02455629,88548.0,88522.0,0.0301695]
[1767001127111,0.0113063,88559.0,88523.0,0.05776]
[1767001127313,0.0245582,88558.0,88523.0,0.03]
[1767001127615,0.0113078,88548.0,88523.0,0.05984]
[1767001127812,0.011308,88546.0,88523.0,0.02984]
[1767001128119,0.0245582,88545.0,88524.0,0.0113108]
[1767001128307,0.09612,88547.0,88524.0,0.03]
[1767001128611,0.0113081,88545.0,88524.0,0.03]
[1767001128918,0.02454704,88544.0,88524.0,0.03]
[1767001129116,0.09612,88547.0,88524.0,0.03]
[1767001129317,0.02454163,88546.0,88524.0,0.03]
[1767001129514,0.02454163,88545.0,88524.0,0.03]
[1767001129812,0.09612,88547.0,88524.0,0.03]
[1767001130011,0.0245417,88546.0,88524.0,0.03]
[1767001130211,0.0245417,88545.0,88524.0,0.03]
[1767001130411,0.09612,88547.0,88524.0,0.03]
[1767001130613,0.02453833,88546.0,88524.0,0.03]
[1767001130912,0.0113066,88557.0,88524.0,0.03]
[1767001131117,0.011307,88554.0,88526.0,0.0113104]
[1767001131417,0.09612,88553.0,88531.0,0.0001694]
[1767001131914,0.09612,88553.0,88515.0,0.0113118]
[1767001132105,0.0113087,88541.0,88516.0,0.15388]
[1767001132411,0.011309,88538.0,88516.0,0.18388]
[1767001132613,0.09612,88543.0,88516.0,0.18388]
[1767001132812,0.05776,88542.0,88504.0,0.0690732]
[1767001133017,0.0113099,88531.0,88504.0,0.08776]
[1767001133219,0.0113103,88528.0,88504.0,0.08776]
[1767001133414,0.09612,88531.0,88504.0,0.03]
[1767001133608,0.0113106,88526.0,88504.0,0.03]
[1767001133918,0.05776,88529.0,88506.0,0.0001694]
[1767001134119,0.05776,88529.0,88506.0,0.0301694]
[1767001134418,0.09612,88534.0,88507.0,0.05776]
[1767001134616,0.09612,88534.0,88508.0,0.09612]
[1767001134916,0.09612,88536.0,88508.0,0.12612]
[1767001135120,0.09612,88536.0,88514.0,0.011312]
[1767001135305,0.1074293,88536.0,88514.0,0.03]
[1767001135504,0.1074293,88536.0,88508.0,0.1074328]
[1767001135706,0.09612,88536.0,88511.0,0.0113123]
[1767001135915,0.09612,88536.0,88511.0,0.0413123]
[1767001136309,0.09612,88536.0,88511.0,0.03]
[1767001136711,0.0113085,88542.0,88511.0,0.03]
[1767001136914,0.15228,88541.0,88511.0,0.03]
[1767001137115,0.09612,88541.0,88511.0,0.03]
[1767001137316,0.1074281,88545.0,88511.0,0.03]
[1767001137719,0.0001694,88537.0,88519.0,0.0001694]
[1767001137918,0.0001694,88537.0,88520.0,0.05776]
[1767001138122,0.0113077,88549.0,88520.0,0.08776]
[1767001138422,0.0113092,88537.0,88520.0,0.08776]
[1767001138623,0.0113078,88547.0,88520.0,0.03]
[1767001138815,0.011309,88539.0,88520.0,0.03]
[1767001139317,0.0113085,88542.0,88520.0,0.03]
[1767001140220,0.0113088,88540.0,88520.0,0.03]
[1767001140425,0.0113091,88538.0,88520.0,0.03]
[1767001140624,0.0113086,88541.0,88520.0,0.03]
[1767001140823,0.0113086,88541.0,88509.0,0.0113126]
[1767001140824,0.0113084,88543.0,88477.0,0.14955553]
[1767001141128,0.09612,88545.0,88486.0,0.09612]